bitfinex/quotes_ETHUSD_20250214
["timestamp","ask_amount","ask_price","bid_price","bid_amount"]
[1739550810668,3.66832,2726.1,2725.5,3.66902]
[1739550811069,3.66832,2726.1,2725.6,3.66889]
[1739550811482,3.66832,2726.1,2725.3,0.4992]
[1739550811483,3.6675,2726.7,2726.1,3.66823]
[1739550811773,3.66765,2726.6,2726.0,7.57690865]
[1739550811934,4.4588,2726.9,2726.0,3.90862865]
[1739550812145,3.6672,2726.9,2726.3,3.66788]
[1739550812377,0.0075,2727.2,2726.1,3.66818]
[1739550812578,3.6681,2726.3,2725.8,0.7993]
[1739550812751,3.6681,2726.3,2725.5,12.40897]
[1739550812752,0.44597,2726.3,2725.5,0.7993]
[1739550812948,3.66865,2725.8,2725.4,3.90862865]
[1739550813266,3.66818,2726.2,2725.5,6.66904]
[1739550813468,3.66818,2726.2,2725.7,3.66874]
[1739550813681,3.668,2726.3,2725.7,3.66874]
[1739550813993,3.66789,2726.4,2725.8,3.66861]
[1739550814189,3.66789,2726.4,2725.7,7.57732865]
[1739550814378,3.66806,2726.3,2725.5,6.66898]
[1739550814574,3.66826,2726.1,2725.5,3.0]
[1739550814754,3.66868,2725.8,2725.3,0.4992]
[1739550814949,3.669,2725.6,2725.3,0.4992]
[1739550815398,3.66905,2725.5,2725.3,0.4992]
[1739550815576,4.402855,2725.5,2725.3,0.4992]
[1739550815777,3.66885,2725.7,2725.3,0.4992]
[1739550815978,3.66892,2725.6,2725.3,0.4992]
[1739550816870,3.66885,2725.7,2725.3,0.4992]
[1739550817085,3.66908,2725.5,2725.3,0.4992]
[1739550817476,3.66887,2725.7,2725.3,0.4992]
[1739550817676,4.114917,2725.7,2725.3,0.4992]
[1739550817867,3.66905,2725.5,2725.3,0.4992]
[1739550818803,0.446047,2725.7,2725.3,0.4992]
[1739550818972,4.46025,2725.8,2725.3,0.4992]
[1739550819174,3.66818,2726.2,2725.4,3.66905]
[1739550819589,3.66845,2726.0,2725.5,3.66901]
[1739550819903,3.66851,2725.9,2725.5,0.7618]
[1739550820103,4.941999,2726.4,2725.8,3.66855]
[1739550820305,3.66797,2726.3,2725.8,3.6686]
[1739550820461,3.66827,2726.1,2725.7,0.03668343]
[1739550820846,3.66859,2725.9,2725.5,3.0]
[1739550821377,3.66881,2725.7,2725.3,0.4992]
[1739550821804,1.274049,2726.4,2725.5,3.66903]
[1739550822005,1.274049,2726.4,2725.5,3.66896]
[1739550822006,3.6683,2726.1,2725.5,3.66896]
[1739550822378,3.6683,2726.1,2725.4,3.66915]
[1739550822586,3.6683,2726.1,2725.5,3.66894]
[1739550823002,3.66803,2726.3,2725.6,3.70552435]
[1739550823206,3.66803,2726.3,2725.8,3.66856]
[1739550823377,3.66803,2726.3,2725.6,6.66883]
[1739550823578,3.66803,2726.3,2725.8,3.66857]
[1739550823910,4.49594,2726.4,2725.7,3.66878]
[1739550824209,3.66848,2726.0,2725.6,3.0]
[1739550824414,3.66894,2725.6,2725.3,0.4992]
[1739550824817,3.66918,2725.4,2725.3,0.4992]
[1739550825111,4.49725,2725.5,2725.3,0.4992]
[1739550825280,3.66918,2725.4,2725.3,0.4992]
[1739550826408,5.043314,2725.4,2725.3,0.4992]
[1739550826567,5.050814,2725.4,2725.3,0.4992]
[1739550826770,4.493314,2725.4,2725.3,0.4992]
[1739550827516,3.6688,2725.7,2725.3,0.4992]
[1739550827714,3.66906,2725.5,2725.3,0.4992]
[1739550827911,3.66918,2725.4,2725.3,0.4992]
[1739550828507,3.66906,2725.5,2725.3,0.4992]
[1739550828914,3.66886,2725.7,2725.3,0.4992]
[1739550829097,0.0075,2725.7,2725.3,0.4992]
[1739550829297,3.66902,2725.6,2725.3,0.4992]
[1739550829467,4.46454,2725.9,2725.3,4.16851]
[1739550829672,3.66878,2725.7,2725.3,0.4992]
[1739550829885,8.13152,2726.5,2725.9,3.66849]
[1739550830089,0.813152,2726.4,2725.6,4.45422]
[1739550830284,3.66818,2726.2,2725.6,8.12305]
[1739550830498,3.66828,2726.1,2725.6,4.45422]
[1739550830825,3.668,2726.3,2725.7,3.66877]
[1739550831114,4.46379,2726.5,2725.6,4.45422]
[1739550831414,3.66811,2726.2,2725.6,8.12307]
[1739550831715,3.66811,2726.2,2725.6,4.45423]
[1739550832392,3.66801,2726.3,2725.7,3.66866]
[1739550832609,7.3361,2726.3,2725.7,3.66866]
[1739550832774,3.66801,2726.3,2725.7,3.66866]
[1739550833177,3.66811,2726.2,2725.6,4.45423]
[1739550833688,3.66811,2726.2,2725.6,8.12307]
[1739550833894,3.66811,2726.2,2725.7,3.66876]
[1739550834279,3.66841,2726.0,2725.4,3.0]
[1739550834713,3.67586,2726.1,2725.5,3.66901]
[1739550834897,3.66824,2726.2,2725.6,3.66881]
[1739550835105,3.66792,2726.4,2725.4,0.7893]
[1739550835424,0.8035,2726.5,2725.4,0.7893]
[1739550835425,4.46371,2726.5,2726.0,3.66824]
[1739550835960,3.66798,2726.3,2725.9,3.66844]
[1739550836226,3.66811,2726.2,2725.8,3.0]
[1739550836406,3.66811,2726.2,2725.3,0.4992]
[1739550836407,0.565,2726.2,2725.3,0.4992]
[1739550836579,3.66866,2725.8,2725.3,0.4992]
[1739550836772,3.66866,2725.8,2725.3,4.16843]
[1739550837013,3.66791,2726.4,2725.7,3.66866]
[1739550837197,3.66791,2726.4,2725.7,3.66876]
[1739550837198,3.66819,2726.2,2725.7,3.66876]
[1739550837722,3.66818,2726.2,2725.6,3.66881]
[1739550838032,3.66818,2726.2,2725.7,3.6687]
[1739550839028,3.66818,2726.2,2725.5,3.66896]
[1739550839327,3.6682,2726.2,2725.6,3.6689]
[1739550839494,3.66797,2726.3,2725.7,3.66877]
[1739550839716,4.05345391,2726.4,2725.8,3.66852]
[1739550839902,3.66792,2726.4,2725.8,3.66857]
[1739550840102,3.66792,2726.4,2725.9,3.6685]
[1739550840331,3.66766,2726.6,2726.0,3.66826]
[1739550840630,3.6674,2726.8,2725.7,3.7893]
[1739550840785,2.25446576,2727.0,2726.3,3.7893]
[1739550840977,2.25446576,2727.0,2726.9,3.66716]
[1739550841182,0.7749,2727.8,2727.2,3.66675]
[1739550841382,1.218983,2727.8,2727.3,3.66662]
[1739550841619,3.6661,2727.7,2727.0,8.12318]
[1739550841819,3.6661,2727.7,2727.1,3.66686]
[1739550842004,0.0075,2727.7,2727.0,0.7893]
[1739550842323,3.66657,2727.4,2726.9,3.0]
[1739550842491,4.13438743,2727.4,2726.9,3.0]
[1739550842691,3.66673,2727.3,2726.8,3.0]
[1739550842910,3.66711,2727.0,2726.4,4.45704]
[1739550843212,4.4418,2727.1,2726.5,3.66768]
[1739550843408,5.253416,2727.1,2726.5,3.66767]
[1739550843649,0.015,2727.0,2726.1,0.7893]
[1739550843848,0.015,2727.0,2725.9,3.9093459]
[1739550844064,3.66803,2726.3,2725.7,0.7893]
[1739550844266,4.44293,2726.3,2725.7,0.7893]
[1739550844421,4.44293,2726.3,2725.7,4.45807]
[1739550844628,8.11101,2726.3,2725.7,4.45807]
[1739550844824,1.586001,2726.3,2725.4,8.1275]
[1739550845038,3.66832,2726.1,2725.5,3.66903]
[1739550845254,3.66832,2726.1,2725.4,4.45837]
[1739550845670,3.66856,2725.9,2725.3,4.16851]
[1739550846040,7.33717,2725.9,2725.3,4.16851]
[1739550846867,3.66873,2725.8,2725.3,0.4992]
[1739550847020,4.402459,2725.8,2725.3,0.4992]
[1739550847426,3.66892,2725.6,2725.3,0.4992]
[1739550848066,4.402459,2725.8,2725.3,0.4992]
[1739550848272,3.66886,2725.7,2725.3,0.4992]
[1739550848467,4.46989,2725.6,2725.3,0.4992]
[1739550848657,3.66905,2725.5,2725.3,0.4992]
[1739550848970,4.46989,2725.6,2725.3,0.4992]
[1739550849138,4.46951,2725.9,2725.3,4.16849]
[1739550849325,3.66882,2725.7,2725.3,0.4992]
[1739550849520,3.66908,2725.5,2725.3,0.4992]
[1739550849730,3.66918,2725.4,2725.3,0.4992]
[1739550850573,3.66908,2725.5,2725.3,0.4992]
[1739550850877,0.813833,2725.7,2725.3,0.4992]
[1739550851081,4.482683,2725.7,2725.3,0.4992]
[1739550851370,3.66892,2725.6,2725.3,0.4992]
[1739550851528,0.8151603,2725.6,2725.3,0.4992]
[1739550851737,0.0075,2725.8,2725.3,0.4992]
[1739550851936,3.66895,2725.6,2725.3,0.4992]
[1739550852680,0.0075,2725.8,2725.3,0.4992]
[1739550852828,3.66879,2725.7,2725.3,0.4992]
[1739550853232,0.0075,2725.8,2725.3,0.4992]
[1739550853495,3.66878,2725.7,2725.3,0.4992]
[1739550853938,7.33767,2725.7,2725.3,0.4992]
[1739550854139,7.33768,2725.7,2725.3,0.4992]
[1739550854367,3.669,2725.6,2725.3,0.4992]
[1739550855278,3.66918,2725.4,2725.3,0.4992]
[1739550855430,4.403004,2725.4,2725.3,0.4992]
[1739550856578,3.66906,2725.5,2725.3,0.4992]
[1739550857077,7.33824,2725.5,2725.3,0.4992]
[1739550857250,3.66918,2725.4,2725.3,0.4992]
[1739550861694,3.67668,2725.4,2725.3,0.4992]
[1739550862315,5.00938,2725.4,2725.3,0.4992]
[1739550862515,5.95090589,2725.4,2725.3,0.4992]
[1739550862718,0.0075,2725.1,2724.1,3.67093]
[1739550862895,3.67022,2724.7,2724.1,3.67093]
[1739550863093,3.67004,2724.8,2724.3,3.67066]
[1739550863295,3.67004,2724.8,2724.0,0.8073]
[1739550863296,3.66952,2725.2,2724.0,0.8073]
[1739550863542,3.66952,2725.2,2724.7,0.8073]
[1739550863695,0.95694474,2725.3,2724.4,3.8073]
[1739550863696,0.46264647,2725.1,2724.4,3.8073]
[1739550863894,4.62630474,2725.3,2724.4,0.8073]
[1739550863895,3.67001,2724.8,2724.4,0.8073]
[1739550864126,7.34013,2724.8,2724.4,0.8073]
[1739550864299,3.67001,2724.8,2724.4,0.8073]
[1739550864499,7.34012,2724.8,2724.4,0.8073]
[1739550864740,4.404022,2724.8,2724.2,3.67078]
[1739550865047,3.67025,2724.7,2724.2,3.67078]
[1739550865348,0.0075,2724.9,2724.1,0.8073]
[1739550865514,3.66984,2725.0,2724.5,3.67039]
[1739550865718,3.66949,2725.2,2724.7,3.67003]
[1739550865922,4.61071589,2725.4,2724.9,3.66979]
[1739550866095,3.66938,2725.3,2724.9,3.66979]
[1739550866308,4.61071589,2725.4,2724.9,7.33957]
[1739550866627,3.66855,2725.9,2725.4,3.66913]
[1739550866798,3.66844,2726.0,2725.4,3.66913]
[1739550867146,3.66859,2725.9,2725.4,3.66913]
[1739550867327,3.66844,2726.0,2725.4,3.66913]
[1739550867501,3.66866,2725.8,2725.4,3.66913]
[1739550867701,3.66866,2725.8,2725.3,0.8073]
[1739550868132,4.13133815,2726.0,2725.3,4.51319967]
[1739550868337,4.13133815,2726.0,2725.3,4.47652]
[1739550868574,3.66851,2725.9,2725.4,3.66918]
[1739550868739,7.33714,2725.9,2725.3,4.47652]
[1739550868898,7.3371,2725.9,2725.3,4.47652]
[1739550869098,3.66851,2725.9,2725.3,4.47652]
[1739550869398,3.66851,2725.9,2725.4,3.66914]
[1739550869946,3.66887,2725.7,2725.3,0.8073]
[1739550870249,3.66887,2725.7,2724.8,3.0]
[1739550870250,3.66948,2725.2,2724.7,4.4774]
[1739550870547,3.66948,2725.2,2724.7,0.8073]
[1739550870711,3.66948,2725.2,2724.7,4.47738]
[1739550870926,7.33904,2725.2,2724.7,4.47738]
[1739550871119,4.403384,2725.2,2724.7,4.47738]
[1739550871321,3.66948,2725.2,2724.7,4.47738]
[1739550871547,7.33905,2725.2,2724.7,4.47738]
[1739550871940,3.66948,2725.2,2724.7,0.8073]
[1739550872237,0.7752,2725.5,2724.7,0.8073]
[1739550872238,3.6696,2725.1,2724.7,0.8073]
[1739550872398,3.6696,2725.1,2724.4,3.67053]
[1739550872399,3.6699,2724.9,2724.4,4.47783]
[1739550872996,7.33985,2724.9,2724.4,4.47783]
[1739550873199,1.29269875,2725.4,2724.6,3.90989156]
[1739550873501,3.66952,2725.2,2724.7,3.67007]
[1739550873734,3.6698,2725.0,2724.6,3.90989156]
[1739550873914,3.66988,2724.9,2724.6,3.90989156]
[1739550874545,4.23466,2725.1,2724.6,3.90989156]
[1739550874760,3.66954,2725.2,2724.7,3.67005]
[1739550874916,1.50354912,2725.5,2724.6,7.58012156]
[1739550874917,3.6697,2725.1,2724.6,7.58012156]
[1739550875120,3.66998,2724.9,2724.4,3.8073]
[1739550875506,3.66998,2724.9,2724.4,7.47781]
[1739550876046,3.67716,2725.1,2724.4,7.47781]
[1739550876214,0.0075,2724.9,2724.4,7.47781]
[1739550876540,4.093186,2725.0,2724.5,3.67038]
[1739550876748,3.66959,2725.1,2724.6,7.58005156]
[1739550877047,3.66985,2725.0,2724.6,3.90989156]
[1739550877524,3.66986,2724.9,2724.6,3.90989156]
[1739550878170,3.66964,2725.1,2724.7,3.6701]
[1739550878376,0.7881,2725.9,2725.0,4.70769156]
[1739550878677,7.33748,2725.8,2725.1,3.66959]
[1739550879250,0.7881,2725.9,2725.3,3.90989156]
[1739550879450,3.66852,2725.9,2725.4,3.66909]
[1739550879723,3.66847,2726.0,2725.5,3.66903]
[1739550879955,3.66845,2726.0,2725.5,3.66903]
[1739550880155,7.33693,2726.0,2725.5,3.66903]
[1739550880371,3.66851,2725.9,2725.5,3.66903]
[1739550880567,3.66851,2725.9,2725.3,11.24837156]
[1739550880863,3.66857,2725.9,2725.4,3.66916]
[1739550881176,3.66837,2726.0,2725.4,3.66918]
[1739550881356,3.66854,2725.9,2725.4,3.66918]
[1739550881735,3.66845,2726.0,2725.4,3.66918]
[1739550882166,3.67583,2726.1,2725.4,3.66918]
[1739550882371,3.66852,2725.9,2725.3,7.57920156]
[1739550882539,3.66866,2725.8,2725.3,7.57920156]
[1739550882746,3.66852,2725.9,2725.4,3.6691]
[1739550883074,0.015,2725.9,2725.0,8.37734156]
[1739550883373,0.015,2725.9,2725.0,8.37739156]
[1739550883374,3.66887,2725.7,2725.0,8.37739156]
[1739550883530,4.037257,2725.7,2725.1,3.66948]
[1739550883735,4.037257,2725.7,2725.2,3.66943]
[1739550884244,0.368387,2725.7,2725.4,3.66907]
[1739550884447,0.0075,2725.7,2725.4,3.66907]
[1739550884740,3.66838,2726.0,2725.5,3.66901]
[1739550884950,3.66852,2725.9,2725.5,3.66901]
[1739550885150,3.66852,2725.9,2725.4,3.66918]
[1739550885347,3.66838,2726.0,2725.4,3.66918]
[1739550885544,4.114778,2726.0,2725.4,3.66909]
[1739550885875,0.446398,2726.0,2725.5,3.66897]
[1739550886082,0.446398,2726.0,2725.3,3.90989156]
[1739550886083,0.0075,2725.9,2725.3,3.90989156]
[1739550886232,3.66888,2725.7,2725.1,6.66954]
[1739550886572,0.0075,2725.5,2725.0,3.66967]
[1739550886777,0.0075,2725.5,2725.0,3.66964]
[1739550886982,3.67666,2725.5,2725.0,3.66964]
[1739550887469,0.0075,2725.5,2725.0,3.66964]
[1739550887678,0.0075,2725.5,2725.2,3.66937]
[1739550887848,3.67619,2725.8,2725.0,3.90989156]
[1739550888034,4.544463,2725.8,2725.0,3.94658412]
[1739550888375,3.67635,2725.7,2725.0,7.57950156]
[1739550888541,0.0075,2725.7,2725.1,3.66959]
[1739550888968,0.0075,2725.7,2725.2,3.66932]
[1739550889287,0.5965063,2725.7,2725.2,3.66932]
[1739550889879,3.66891,2725.6,2725.2,3.66932]
[1739550890092,3.66891,2725.6,2725.0,7.57950156]
[1739550890253,3.66891,2725.6,2725.1,3.66949]
[1739550890581,4.2652863,2725.7,2725.2,3.66936]
[1739550890751,0.79415163,2725.6,2725.2,3.66936]
[1739550891149,3.67628,2725.7,2725.3,3.66931]
[1739550891477,0.7881,2725.9,2725.3,7.57920156]
[1739550891678,0.7881,2725.9,2725.5,3.66897]
[1739550891831,4.41063309,2726.0,2725.6,3.66886]
[1739550892032,0.7972,2726.2,2725.8,3.66858]
[1739550892277,0.7972,2726.2,2725.9,3.66849]
[1739550892278,1.826717,2726.2,2725.9,3.66849]
[1739550892431,1.029517,2726.2,2725.8,7.33713]
[1739550892637,4.697637,2726.2,2725.8,3.66855]
[1739550893478,1.029517,2726.2,2725.6,3.90989156]
[1739550893701,1.029517,2726.2,2725.8,3.66852]
[1739550893922,0.4697487,2726.1,2725.6,7.57870156]
[1739550894210,0.4697487,2726.1,2725.7,3.66877]
[1739550894731,0.0075,2726.2,2725.8,3.66857]
[1739550895516,4.23304,2726.3,2725.8,3.66857]
[1739550896081,3.66813,2726.2,2725.8,3.66857]
[1739550896612,0.565,2726.3,2725.9,3.66839]
[1739550896808,4.4649,2726.5,2725.9,3.66839]
[1739550896968,3.66807,2726.3,2725.7,7.33733]
[1739550897168,3.66817,2726.2,2725.7,3.66864]
[1739550897581,3.66807,2726.3,2725.7,3.66864]
[1739550897783,4.11442,2726.4,2725.7,3.66868]
[1739550897990,4.11442,2726.4,2725.9,3.66851]
[1739550898217,0.858691,2726.3,2725.9,3.66851]
[1739550898916,4.526721,2726.3,2725.9,3.66851]
[1739550899416,4.526721,2726.3,2725.3,0.7978]
[1739550899417,3.67584,2726.1,2725.4,3.0]
[1739550899586,3.66848,2726.0,2725.5,3.66893]
[1739550899946,4.1292031,2726.1,2725.6,3.66891]
[1739550900119,3.66845,2726.0,2725.4,6.66911]
[1739550900285,4.46573,2725.9,2725.3,4.70769156]
[1739550900614,3.6688,2725.7,2725.3,4.70769156]
[1739550900819,4.482253,2725.7,2725.3,4.70769156]
[1739550900977,3.66921,2725.4,2725.0,4.73119156]
[1739550901318,3.66921,2725.4,2725.0,7.57959156]
[1739550901816,4.22596,2726.0,2725.4,3.66914]
[1739550902020,0.0075,2725.9,2725.5,3.66895]
[1739550902239,3.66865,2725.8,2725.3,8.40044156]
[1739550902412,3.66915,2725.5,2725.0,3.90989156]
[1739550902611,3.66925,2725.4,2725.0,3.90989156]
[1739550903214,4.46635,2725.5,2725.0,7.57951156]
[1739550903418,3.6692,2725.4,2725.0,7.57951156]
[1739550903618,3.6692,2725.4,2725.0,3.90989156]
[1739550903863,7.33848,2725.4,2725.0,3.90989156]
[1739550904065,3.66942,2725.3,2725.0,3.90989156]
[1739550904362,3.66947,2725.2,2725.0,3.90989156]
[1739550904663,3.66947,2725.2,2724.8,6.6699]
[1739550905221,0.733867,2725.2,2724.8,6.6699]
[1739550905421,3.6692,2725.4,2724.9,3.66975]
[1739550905731,0.0075,2725.4,2725.0,7.57953156]
[1739550905932,1.243835,2725.5,2725.0,7.57953156]
[1739550906138,0.446635,2725.5,2725.1,3.66947]
[1739550906569,0.8076,2725.8,2725.3,7.57920156]
[1739550906733,0.46794131,2725.9,2725.5,3.66903]
[1739550906943,3.66807,2726.3,2725.8,4.46386]
[1739550907340,3.66832,2726.1,2725.6,7.57874156]
[1739550907556,1.48429879,2726.4,2725.6,3.90989156]
[1739550907820,0.73249879,2726.4,2725.9,3.66851]
[1739550908015,1.17401867,2726.4,2725.9,3.66851]
[1739550908459,0.0075,2726.5,2726.1,3.66823]
[1739550908619,0.0075,2726.5,2725.9,7.57831156]
[1739550909035,0.0075,2726.5,2726.0,3.6683]
[1739550909331,3.66786,2726.4,2725.9,3.90989156]
[1739550909652,0.368286,2726.4,2726.1,3.66822]
[1739550909840,3.66772,2726.5,2726.0,3.66837]
[1739550910043,3.668,2726.3,2725.9,3.90989156]
[1739550910260,3.668,2726.3,2725.8,3.66855]
[1739550910462,3.668,2726.3,2725.8,3.0]
[1739550910759,7.33608,2726.3,2725.8,3.0]
[1739550910967,8.069659,2726.3,2725.8,3.0]
[1739550911288,8.069639,2726.3,2725.8,3.0]
[1739550911494,3.66779,2726.5,2725.9,3.66843]
[1739550911790,3.66791,2726.4,2725.8,7.33713]
[1739550912181,3.66791,2726.4,2725.9,3.6685]
[1739550912388,3.66786,2726.4,2725.7,3.0]
[1739550912696,3.66805,2726.3,2725.8,3.66864]
[1739550912896,3.66805,2726.3,2725.8,3.66855]
[1739550914492,3.66813,2726.2,2725.8,3.66855]
[1739550915020,3.66798,2726.3,2725.8,3.66855]
[1739550915299,3.66798,2726.3,2725.8,7.3371]
[1739550915453,3.66798,2726.3,2725.8,3.66855]
[1739550915963,0.733565,2726.4,2725.9,3.66838]
[1739550916170,3.67534,2726.4,2725.9,7.57827156]
[1739550916460,3.66785,2726.4,2726.0,3.66829]
[1739550917093,3.66773,2726.5,2726.0,3.66829]
[1739550917697,3.66782,2726.5,2725.9,3.90989156]
[1739550917846,3.66784,2726.4,2726.0,3.66836]
[1739550918690,0.7518,2726.7,2726.1,4.46349]
[1739550918848,3.66695,2727.1,2726.1,4.46349]
[1739550918849,3.66722,2726.9,2726.4,3.66776]
[1739550919047,4.109122,2726.9,2726.3,3.66794]
[1739550919266,7.776372,2726.9,2726.4,3.66784]
[1739550919483,4.109122,2726.9,2726.3,3.66794]
[1739550919694,3.66741,2726.8,2726.3,3.66794]
[1739550920199,3.66741,2726.8,2725.9,7.57830156]
[1739550920200,0.0075,2726.6,2725.9,7.57830156]
[1739550920399,3.66834,2726.1,2725.6,7.82919156]
[1739550920603,3.66837,2726.1,2725.6,4.16029156]
[1739550920900,3.66837,2726.1,2725.6,7.82920156]
[1739550921413,3.66837,2726.1,2725.6,0.2504]
[1739550921414,0.7725,2726.0,2725.6,0.2504]
[1739550921559,4.23378,2725.7,2725.6,0.2504]
[1739550921905,4.99128,2725.7,2725.6,0.2504]
[1739550922358,4.99128,2725.7,2724.9,3.0]
[1739550922359,3.66948,2725.2,2724.7,4.69289156]
[1739550922702,0.0075,2725.0,2724.4,4.69289156]
[1739550922998,0.0075,2725.0,2724.6,3.67025]
[1739550923311,3.67723,2725.0,2724.5,3.67028]
[1739550923486,3.67723,2725.0,2724.4,4.69289156]
[1739550923669,0.7575,2725.1,2724.4,4.69289156]
[1739550923873,0.7575,2725.1,2724.7,3.90989156]
[1739550924287,0.7575,2725.1,2724.7,7.58000156]
[1739550924457,0.7575,2725.1,2724.7,3.90989156]
[1739550925160,0.7575,2725.1,2724.7,7.57995156]
[1739550925795,0.7575,2725.1,2724.8,3.66995]
[1739550925979,0.7575,2725.1,2724.7,3.90989156]
[1739550926391,1.200186,2725.1,2724.7,3.90989156]
[1739550926592,4.869866,2725.1,2724.4,8.36333156]
[1739550926780,0.0075,2725.0,2724.4,8.36333156]
[1739550927101,1.200186,2725.1,2724.5,3.67038]
[1739550927404,1.200186,2725.1,2724.6,3.67024]
[1739550927775,0.442686,2725.1,2724.7,7.57993156]
[1739550927990,4.48935,2725.4,2724.9,3.66985]
[1739550928288,3.96655,2725.9,2725.1,3.66957]
[1739550928289,0.8126,2725.7,2725.1,3.66957]
[1739550928466,0.8126,2725.7,2725.2,3.66934]
[1739550928998,0.0075,2725.8,2725.4,3.66911]
[1739550929218,4.30947269,2725.8,2725.3,7.57908156]
[1739550929374,4.30947269,2725.8,2725.3,3.90989156]
[1739550929573,4.30947269,2725.8,2725.1,0.8184]
[1739550929574,0.64083269,2725.8,2725.1,0.8184]
[1739550929901,3.66878,2725.7,2725.1,4.48792]
[1739550930117,3.67621,2725.8,2725.1,0.8184]
[1739550930118,3.66894,2725.6,2725.1,0.8184]
[1739550930320,3.66925,2725.4,2725.0,3.90989156]
[1739550930494,0.8126,2725.5,2725.0,3.90989156]
[1739550930694,4.48168,2725.5,2725.0,3.90989156]
[1739550931021,5.297502,2725.5,2725.0,3.90989156]
[1739550931524,3.66944,2725.3,2724.7,3.90989156]
[1739550931709,0.0075,2725.3,2724.5,0.8184]
[1739550931877,4.48241,2725.0,2724.4,7.58038156]
[1739550932078,3.67013,2724.7,2724.2,4.4891]
[1739550932307,3.67008,2724.8,2724.2,3.6707]
[1739550932504,3.66999,2724.8,2724.3,3.67057]
[1739550932718,0.8126,2725.0,2724.4,3.90989156]
[1739550932920,0.8126,2725.0,2724.6,3.67019]
[1739550933330,0.8126,2725.0,2724.4,8.39882156]
[1739550933626,4.48241,2725.0,2724.4,8.39882156]
[1739550933870,0.09261686,2724.9,2724.5,3.67039]
[1739550934025,0.09261686,2724.9,2724.7,3.90989156]
[1739550934225,0.09261686,2724.9,2724.7,7.57994156]
[1739550934530,3.66947,2725.2,2724.7,7.57994156]
[1739550934712,4.173427,2725.2,2724.7,7.57994156]
[1739550934913,4.173427,2725.2,2724.5,3.67032]
[1739550935082,3.67724,2725.0,2724.4,8.39881156]
[1739550935528,3.67724,2725.0,2724.5,3.67039]
[1739550935705,0.503957,2725.2,2724.7,3.90989156]
[1739550935900,3.66881,2725.7,2725.1,3.66957]
[1739550936104,0.448141,2725.6,2725.2,3.66937]
[1739550936286,0.448141,2725.6,2725.1,3.66957]
[1739550936511,4.117061,2725.6,2725.1,3.66957]
[1739550937236,4.117061,2725.6,2725.0,3.90989156]
[1739550937391,3.75831317,2725.5,2725.0,3.90989156]
[1739550937618,4.54584159,2725.5,2725.0,3.90989156]
[1739550937820,4.54584159,2725.5,2725.0,7.57960156]
[1739550939164,4.54584159,2725.5,2724.9,3.66984]
[1739550940048,0.87673159,2725.5,2724.9,3.66984]
[1739550940223,4.54578159,2725.5,2725.0,3.66966]
[1739550940424,0.49939226,2725.4,2725.0,3.66966]
[1739550940726,3.6692,2725.4,2724.9,3.66984]
[1739550940927,3.6692,2725.4,2724.8,3.0]
[1739550940928,0.7687,2725.2,2724.8,3.0]
[1739550941129,3.6697,2725.1,2724.8,3.0]
[1739550941380,0.08872234,2725.1,2724.6,3.67025]
[1739550941538,0.08872234,2725.1,2724.7,3.67005]
[1739550941937,0.08872234,2725.1,2724.7,7.57994156]
[1739550942138,0.0075,2725.0,2724.7,3.90989156]
[1739550942340,3.67003,2724.8,2724.4,3.90989156]
[1739550942868,3.66997,2724.9,2724.1,7.58073156]
[1739550942869,4.52781729,2724.7,2724.1,7.58073156]
[1739550943245,8.19801729,2724.7,2724.1,7.58073156]
[1739550943455,4.52781729,2724.7,2724.1,7.58073156]
[1739550943757,4.52781729,2724.7,2724.2,3.67073]
[1739550944069,0.85768729,2724.7,2724.2,3.6708]
[1739550944273,4.52782729,2724.7,2724.2,3.6708]
[1739550944470,5.34760402,2724.7,2724.2,7.34153]
[1739550944631,5.34760402,2724.7,2724.2,3.67073]
[1739550945154,0.08898729,2724.7,2724.5,3.67038]
[1739550945358,4.43809,2725.3,2724.7,3.67005]
[1739550945568,3.85427176,2726.2,2724.8,3.90989156]
[1739550945569,3.66893,2725.6,2724.8,3.90989156]
[1739550945737,0.0075,2725.4,2725.0,3.66965]
[1739550945925,0.0075,2725.4,2724.8,7.57980156]
[1739550946127,0.0075,2725.4,2724.9,3.66984]
[1739550946330,3.67671,2725.4,2724.9,3.66984]
[1739550946534,3.66932,2725.3,2724.8,7.57988156]
[1739550946878,4.43848,2725.0,2724.5,3.90989156]
[1739550947178,4.43848,2725.0,2724.2,3.90989156]
[1739550947179,3.67005,2724.8,2724.2,3.90989156]
[1739550947470,3.67005,2724.8,2724.2,7.58066156]
[1739550947673,0.565,2724.9,2724.3,3.67057]
[1739550947871,4.170392,2724.8,2724.3,3.67057]
[1739550949029,0.08534222,2724.7,2724.3,3.67057]
[1739550949231,0.08534222,2724.7,2724.3,3.67066]
[1739550949430,4.170342,2724.8,2724.2,6.90989156]
[1739550949678,0.08525267,2724.6,2724.2,7.58067156]
[1739550949872,0.08534222,2724.7,2724.3,3.67059]
[1739550950074,0.08534222,2724.7,2724.4,3.67049]
[1739550950230,0.08534222,2724.7,2724.2,3.90989156]
[1739550950231,0.500342,2724.8,2724.3,3.67065]
[1739550950431,0.08525267,2724.6,2724.2,7.58067156]
[1739550950678,4.1436602,2724.7,2724.2,7.58067156]
[1739550950679,4.2287502,2724.7,2724.2,7.58067156]
[1739550950833,0.08491087,2724.5,2724.4,3.67053]
[1739550951250,0.500342,2724.8,2724.4,3.67053]
[1739550951534,4.170342,2724.8,2724.3,3.6706]
[1739550951734,0.5586162,2724.7,2724.3,3.6706]
[1739550953077,4.2287462,2724.7,2724.2,7.58068156]
[1739550953480,0.5586162,2724.7,2724.2,3.90989156]
[1739550953686,0.08509,2724.7,2724.4,3.67051]
[1739550953837,0.08509,2724.7,2724.3,3.6706]